fUST/lending_fUST_20250226
["ID","MTS","AMOUNT","RATE_DAILY","PERIOD"]
[354459843,1740519066832,-1566.75,0.00049589,120]
[354459844,1740519066842,-1100.1,0.00049589,120]
[354459845,1740519066851,-1475.49,0.00049589,120]
[354459846,1740519066860,-389.71170745,0.00049589,120]
[354459847,1740519066869,-2766.33,0.00049589,120]
[354459848,1740519066878,-500.0,0.00049589,120]
[354459849,1740519066888,-500.0,0.00049589,120]
[354459850,1740519066898,-500.0,0.00049589,120]
[354459851,1740519066907,-500.0,0.00049589,120]
[354459852,1740519066916,-500.0,0.00049589,120]
[354459853,1740519066927,-500.0,0.00049589,120]
[354459854,1740519066936,-29300.14,0.00049589,6]
[354459855,1740519066946,-19347.35,0.00049589,120]
[354459856,1740519066955,-1361.8,0.00049589,7]
[354459857,1740519066964,-500.0,0.00049589,120]
[354459858,1740519066973,-502.6131822,0.00049589,120]
[354459859,1740519066982,-1497.93,0.00049589,120]
[354459860,1740519066992,-2398.83,0.00049589,120]
[354459861,1740519067001,-500.0,0.00049589,120]
[354459862,1740519067010,-500.0,0.00049589,120]
[354459863,1740519067019,-175.15485664,0.00049589,120]
[354459864,1740519067028,-500.0,0.00049589,120]
[354459865,1740519067038,-30730.86,0.00049589,120]
[354459866,1740519067047,-500.0,0.00049589,120]
[354459867,1740519067056,-500.0,0.00049589,120]
[354459868,1740519067066,-2352.84,0.00049589,120]
[354459869,1740519067075,-2743.62,0.00049589,120]
[354459870,1740519067085,-500.0,0.00049589,120]
[354459871,1740519067095,-500.0,0.00049589,120]
[354459872,1740519067104,-1070.39,0.00049589,120]
[354459873,1740519067113,-500.0,0.00049589,120]
[354459874,1740519067122,-500.0,0.00049589,120]
[354459875,1740519067132,-500.0,0.00049589,120]
[354459876,1740519067142,-500.0,0.00049589,120]
[354459877,1740519067151,-500.0,0.00049589,120]
[354459878,1740519067161,-542.72,0.00049589,120]
[354459879,1740519067171,-500.0,0.00049589,120]
[354459880,1740519067181,-500.0,0.00049589,120]
[354459881,1740519067190,-14540.75,0.00049589,120]
[354459882,1740519067200,-5233.03,0.00049589,120]
[354459883,1740519067209,-500.0,0.00049589,120]
[354459884,1740519067219,-500.0,0.00049589,2]
[354459885,1740519067228,-3385.4,0.00049589,120]
[354459886,1740519067238,-500.0,0.00049589,120]
[354459887,1740519067248,-2698.68,0.00049589,120]
[354459888,1740519067258,-500.0,0.00049589,120]
[354459889,1740519067268,-1221.43,0.00049589,120]
[354459890,1740519067277,-500.72914107,0.00049589,120]
[354459891,1740519067287,-1698.15,0.00049589,120]
[354459892,1740519067296,-500.0,0.00049589,120]
[354459893,1740519067306,-500.0,0.00049589,120]
[354459894,1740519067316,-500.0,0.00049589,120]
[354459895,1740519067325,-500.0,0.00049589,120]
[354459896,1740519067335,-498.30640517,0.00049589,2]
[354459897,1740519067345,-500.0,0.00049589,120]
[354459898,1740519067355,-500.0,0.00049589,120]
[354459899,1740519067365,-797.95,0.00049589,120]
[354459900,1740519067375,-1952.34,0.00049589,120]
[354459901,1740519067385,-500.0,0.00049589,120]
[354459902,1740519067395,-500.0,0.00049589,120]
[354459903,1740519067404,-500.0,0.00049589,2]
[354459904,1740519067414,-500.0,0.00049589,120]
[354459905,1740519067423,-500.0,0.00049589,120]
[354459906,1740519067433,-492.32463138,0.00049589,120]
[354459907,1740519067443,-236.743,0.00049589,120]
[354459908,1740519067453,-500.0,0.00049589,120]
[354459909,1740519067462,-500.0,0.00049589,120]
[354459910,1740519067472,-500.0,0.00049589,120]
[354459911,1740519067482,-500.0,0.00049589,120]
[354459912,1740519067491,-2341.12,0.00049589,120]
[354459913,1740519067501,-500.0,0.00049589,120]
[354459914,1740519067510,-500.0,0.00049589,120]
[354459915,1740519067519,-608.77,0.00049589,120]
[354459916,1740519067529,-637.2404972,0.00049589,120]
[354459917,1740519067538,-500.0,0.00049589,120]
[354459918,1740519067548,-500.0,0.00049589,120]
[354459919,1740519067557,-504.63757328,0.00049589,120]
[354459920,1740519067566,-500.0,0.00049589,120]
[354459921,1740519067691,-4629.54,0.00049589,120]
[354459922,1740519067702,-6945.35,0.00049589,120]
[354459923,1740519067712,-500.0,0.00049589,120]
[354459924,1740519067721,-875.11,0.00049589,120]
[354459925,1740519067730,-500.0,0.00049589,120]
[354459926,1740519067739,-500.0,0.00049589,120]
[354459927,1740519067749,-500.0,0.00049589,120]
[354459928,1740519067758,-500.0,0.00049589,120]
[354459929,1740519067767,-500.0,0.00049589,120]
[354459930,1740519067777,-1793.94,0.00049589,120]
[354459931,1740519067786,-500.0,0.00049589,120]
[354459932,1740519067795,-615.16,0.00049589,120]
[354459933,1740519067803,-1101.55,0.00049589,120]
[354459934,1740519067812,-500.0,0.00049589,120]
[354459935,1740519067820,-14537.03,0.00049589,120]
[354459936,1740519067828,-1776.54,0.00049589,120]
[354459937,1740519067836,-3751.79,0.00049589,120]
[354459938,1740519067844,-500.0,0.00049589,120]
[354459939,1740519067852,-1776.3,0.00049589,120]
[354459940,1740519067860,-500.0,0.00049589,120]
[354459941,1740519067868,-500.0,0.00049589,120]
[354459942,1740519067877,-500.0,0.00049589,120]
[354459943,1740519067885,-500.0,0.00049589,120]
[354459944,1740519067894,-500.0,0.00049726,120]
[354459945,1740519067903,-156.00594704,0.00049808,120]
[354459946,1740519067911,-500.0,0.00049863,120]
[354459947,1740519067919,-502.09379907,0.00049863,120]
[354459948,1740519067928,-500.0,0.00049863,120]
[354459949,1740519067936,-500.0,0.00049863,120]
[354459950,1740519067944,-500.0,0.00049863,120]
[354459951,1740519067952,-500.0,0.00049863,120]
[354459952,1740519067961,-443.2404917,0.00049863,120]
[354459953,1740519067968,-500.0,0.00049863,120]
[354459954,1740519067976,-383.6700153,0.00049863,120]
[354459955,1740519067984,-503.38610217,0.00049863,120]
[354459956,1740519067993,-500.0,0.00049863,120]
[354459957,1740519068002,-509.25657923,0.00049863,120]
[354459958,1740519068011,-500.0,0.00049863,120]
[354459959,1740519068020,-500.0,0.00049863,120]
[354459960,1740519068029,-500.0,0.00049863,120]
[354459961,1740519068039,-500.0,0.00049863,120]
[354459962,1740519068051,-500.0,0.00049863,120]
[354459963,1740519068060,-153.63577998,0.00049863,120]
[354459964,1740519068069,-500.0,0.00049863,120]
[354459965,1740519068079,-500.0,0.00049863,120]
[354459966,1740519068089,-523.10722969,0.00049863,120]
[354459967,1740519068099,-500.0,0.00049863,120]
[354459968,1740519068108,-500.0,0.00049863,120]
[354459969,1740519068118,-500.0,0.00049863,120]
[354459970,1740519068128,-500.0,0.00049863,120]
[354459971,1740519068137,-500.0,0.00049863,30]
[354459972,1740519068146,-500.0,0.00049863,120]
[354459973,1740519068155,-1412.39,0.00049863,120]
[354459974,1740519068165,-500.0,0.00049863,120]
[354459975,1740519068176,-500.0,0.00049863,120]
[354459976,1740519068185,-500.0,0.00049863,120]
[354459977,1740519068195,-500.0,0.00049863,120]
[354459978,1740519068204,-500.0,0.00049863,120]
[354459979,1740519068213,-505.64585682,0.00049863,120]
[354459980,1740519068223,-1573.02,0.00049863,120]
[354459981,1740519068232,-505.42047916,0.00049863,120]
[354459982,1740519068241,-500.0,0.00049863,120]
[354459983,1740519068250,-500.0,0.00049863,120]
[354459984,1740519068259,-501.51615591,0.00049863,120]
[354459985,1740519068268,-337.5073813,0.00049863,120]
[354459986,1740519068278,-500.0,0.00049863,120]
[354459987,1740519068287,-500.0,0.00049863,120]
[354459988,1740519068296,-500.0,0.00049863,120]
[354459989,1740519068305,-876.92,0.00049863,120]
[354459990,1740519068314,-925.21,0.00049863,120]
[354459991,1740519068323,-660.53,0.00049863,120]
[354459992,1740519068332,-500.0,0.00049863,120]
[354459993,1740519068342,-500.0,0.00049863,120]
[354459994,1740519068351,-500.0,0.00049863,120]
[354459995,1740519068361,-298.07545518,0.00049863,120]
[354459996,1740519068369,-501.46317128,0.00049863,120]
[354459997,1740519068379,-511.55850478,0.00049863,120]
[354459998,1740519068388,-500.0,0.00049863,120]
[354459999,1740519068397,-795.52,0.00049863,120]
[354460000,1740519068407,-500.0,0.00049863,120]
[354460001,1740519068416,-500.0,0.00049863,120]
[354460002,1740519068426,-500.0,0.00049863,120]
[354460003,1740519068435,-500.0,0.00049863,120]
[354460004,1740519068444,-500.0,0.00049863,30]
[354460005,1740519068454,-500.0,0.00049863,120]
[354460006,1740519068463,-500.0,0.00049863,120]
[354460007,1740519068472,-500.0,0.00049863,120]
[354460008,1740519068481,-154.47182886,0.00049863,120]
[354460009,1740519068490,-500.0,0.00049863,120]
[354460010,1740519068499,-500.0,0.00049863,120]
[354460011,1740519068509,-535.2803163,0.00049863,120]
[354460012,1740519068519,-1269.6,0.00049863,120]
[354460013,1740519068530,-500.0,0.00049863,120]
[354460014,1740519068541,-515.08897581,0.00049863,120]
[354460015,1740519068551,-500.0,0.00049863,120]
[354460016,1740519068560,-500.0,0.00049863,120]
[354460017,1740519068570,-500.0,0.00049863,120]
[354460018,1740519068579,-500.0,0.00049863,120]
[354460019,1740519068589,-500.0,0.00049863,120]
[354460020,1740519068598,-545.88,0.00049863,120]
[354460021,1740519068612,-598.47084407,0.00049863,120]
[354460022,1740519068624,-500.0,0.00049863,120]
[354460023,1740519068633,-500.0,0.00049863,120]
[354460024,1740519068643,-562.39,0.00049863,120]
[354460025,1740519068652,-1658.65,0.00049863,120]
[354460026,1740519068663,-500.0,0.00049863,120]
[354460027,1740519068672,-500.0,0.00049863,120]
[354460028,1740519068681,-500.0,0.00049863,120]
[354460029,1740519068692,-500.0,0.00049863,120]
[354460030,1740519068701,-500.0,0.00049863,120]
[354460031,1740519068711,-511.14,0.00049863,120]
[354460032,1740519068720,-500.0,0.00049863,120]
[354460033,1740519068729,-500.0,0.00049863,120]
[354460034,1740519068739,-500.0,0.00049863,120]
[354460035,1740519068748,-430.64405913,0.00049863,120]
[354460036,1740519068758,-500.0,0.00049863,120]
[354460037,1740519068767,-507.02388544,0.00049863,120]
[354460038,1740519068777,-506.81704009,0.00049863,120]
[354460039,1740519068787,-3546.38,0.00049863,120]
[354460040,1740519068797,-712.2,0.00049863,120]
[354460041,1740519068806,-500.0,0.00049863,120]
[354460042,1740519068816,-500.0,0.00049863,120]
[354460043,1740519068825,-500.0,0.00049863,120]
[354460044,1740519068835,-435.53794733,0.00049863,120]
[354460045,1740519068844,-240.08647132,0.00049863,120]
[354460046,1740519068854,-548.40654811,0.00049863,120]
[354460047,1740519068863,-500.0,0.00049863,120]
[354460048,1740519068873,-500.0,0.00049863,120]
[354460049,1740519068882,-500.0,0.00049863,120]
[354460050,1740519068892,-500.0,0.00049863,120]
[354460051,1740519068901,-507.24227474,0.00049863,120]
[354460052,1740519068911,-500.0,0.00049863,120]
[354460053,1740519068922,-500.0,0.00049863,120]
[354460054,1740519068931,-500.0,0.00049863,120]
[354460055,1740519068940,-500.0,0.00049863,120]
[354460056,1740519068950,-505.8874119,0.00049863,120]
[354460057,1740519068959,-500.0,0.00049863,120]
[354460058,1740519068969,-500.0,0.00049863,120]
[354460059,1740519068982,-500.0,0.00049863,120]
[354460060,1740519068992,-500.0,0.00049863,120]
[354460061,1740519069001,-500.0,0.00049863,120]
[354460062,1740519069011,-500.0,0.00049863,120]
[354460063,1740519069020,-500.0,0.00049863,120]
[354460064,1740519069030,-500.0,0.00049863,120]
[354460065,1740519069039,-501.41932439,0.00049863,120]
[354460066,1740519069049,-500.0,0.00049863,120]
[354460067,1740519069058,-500.0,0.00049863,120]
[354460068,1740519069067,-500.0,0.00049863,120]
[354460069,1740519069076,-500.0,0.00049863,120]
[354460070,1740519069086,-508.18512307,0.00049863,120]
[354460071,1740519069095,-500.0,0.00049863,120]
[354460072,1740519069105,-1235.61,0.00049863,120]
[354460073,1740519069114,-500.0,0.00049863,120]
[354460074,1740519069124,-500.0,0.00049863,120]
[354460075,1740519069133,-503.06962439,0.00049863,120]
[354460076,1740519069143,-596.01,0.00049863,120]
[354460077,1740519069152,-500.0,0.00049863,120]
[354460078,1740519069162,-500.0,0.00049863,120]
[354460079,1740519069172,-364.2666177,0.00049863,120]
[354460080,1740519069182,-500.0,0.00049863,120]
[354460081,1740519069191,-500.0,0.00049863,120]
[354460082,1740519069201,-500.0,0.00049863,120]
[354460083,1740519069215,-598.31,0.00049863,120]
[354460084,1740519069224,-500.0,0.00049863,120]
[354460085,1740519069234,-572.41,0.00049863,120]
[354460086,1740519069243,-501.68645118,0.00049863,120]
[354460087,1740519069253,-500.0,0.00049863,2]
[354460088,1740519069263,-500.0,0.00049863,120]
[354460089,1740519069272,-500.0,0.00049863,120]
[354460090,1740519069281,-513.54263718,0.00049863,120]
[354460091,1740519069291,-500.0,0.00049863,120]
[354460092,1740519069300,-693.13,0.00049863,120]
[354460093,1740519069310,-500.0,0.00049863,120]
[354460094,1740519069319,-500.0,0.00049863,120]
[354460095,1740519069329,-500.0,0.00049863,120]
[354460096,1740519069339,-500.0,0.00049863,120]
[354460097,1740519069349,-500.0,0.00049863,120]
[354460098,1740519069358,-500.0,0.00049863,120]
[354460099,1740519069368,-500.0,0.00049863,120]
[354460100,1740519069378,-500.0,0.00049863,120]
[354460101,1740519069387,-505.27905597,0.00049863,120]
[354460102,1740519069396,-557.5194269,0.00049863,120]
[354460103,1740519069406,-568.31943033,0.00049863,120]
[354460104,1740519069415,-500.0,0.00049863,120]
[354460105,1740519069426,-500.0,0.00049863,120]
[354460106,1740519069435,-500.0,0.00049863,120]
[354460107,1740519069445,-500.0,0.00049863,120]
[354460108,1740519069454,-500.0,0.00049863,120]
[354460109,1740519069463,-500.0,0.00049863,120]
[354460110,1740519069473,-500.0,0.00049863,120]
[354460111,1740519069483,-500.0,0.00049863,120]
[354460112,1740519069493,-500.0,0.00049863,120]
[354460113,1740519069503,-500.0,0.00049863,120]
[354460114,1740519069512,-500.0,0.00049863,120]
[354460115,1740519069521,-500.0,0.00049863,120]
[354460116,1740519069531,-500.0,0.00049863,120]
[354460117,1740519069540,-500.0,0.00049863,120]
[354460118,1740519069551,-638.86597887,0.00049863,120]
[354460119,1740519069560,-500.0,0.00049863,120]
[354460120,1740519069570,-500.0,0.00049863,120]
[354460121,1740519069579,-1778.47,0.00049863,120]
[354460122,1740519069706,-500.0,0.00049863,120]
[354460123,1740519069717,-560.54795736,0.00049863,120]
[354460124,1740519069726,-500.0,0.00049863,120]
[354460125,1740519069735,-500.0,0.00049863,120]
[354460126,1740519069744,-500.0,0.00049863,120]
[354460127,1740519069754,-503.77071419,0.00049863,120]
[354460128,1740519069763,-500.0,0.00049863,120]
[354460129,1740519069772,-500.0,0.00049863,120]
[354460130,1740519069782,-500.0,0.00049863,120]
[354460131,1740519069791,-524.29,0.00049863,120]
[354460132,1740519069800,-500.0,0.00049863,120]
[354460133,1740519069809,-500.0,0.00049863,120]
[354460134,1740519069819,-500.0,0.00049863,120]
[354460135,1740519069828,-500.0,0.00049863,120]
[354460136,1740519069837,-500.0,0.00049863,120]
[354460137,1740519069847,-500.0,0.00049863,120]
[354460138,1740519069856,-500.0,0.00049863,120]
[354460139,1740519069866,-500.0,0.00049863,120]
[354460140,1740519069875,-500.0,0.00049863,120]
[354460141,1740519069884,-500.0,0.00049863,120]
[354460142,1740519069894,-803.68,0.00049863,120]
[354460143,1740519069903,-522.1581037,0.00049863,120]
[354460144,1740519069912,-2827.55,0.00049863,120]
[354460145,1740519069922,-500.0,0.00049863,120]
[354460146,1740519069931,-500.0,0.00049863,120]
[354460147,1740519069940,-500.0,0.00049863,120]
[354460148,1740519069949,-502.12165178,0.00049863,120]
[354460149,1740519069959,-1286.1,0.00049863,120]
[354460150,1740519069968,-500.0,0.00049863,120]
[354460151,1740519069978,-501.8020352,0.00049863,120]
[354460152,1740519069988,-500.0,0.00049863,120]
[354460153,1740519069997,-500.0,0.00049863,30]
[354460154,1740519070007,-500.0,0.00049863,120]
[354460155,1740519070016,-500.0,0.00049863,120]
[354460156,1740519070026,-500.0,0.00049863,120]
[354460157,1740519070036,-500.0,0.00049863,120]
[354460158,1740519070046,-500.0,0.00049863,120]
[354460159,1740519070055,-500.0,0.00049863,120]
[354460160,1740519070065,-764.69,0.00049863,120]
[354460161,1740519070074,-168.38681889,0.00049863,120]
[354460162,1740519070083,-500.0,0.00049863,120]
[354460163,1740519070092,-500.0,0.00049863,120]
[354460164,1740519070109,-2002.03,0.00049863,120]
[354460165,1740519070126,-405.14623324,0.00049863,120]
[354460166,1740519070136,-500.0,0.00049863,120]
[354460167,1740519070145,-500.0,0.00049863,120]
[354460168,1740519070155,-500.0,0.00049863,120]
[354460169,1740519070165,-500.0,0.00049863,120]
[354460170,1740519070175,-500.0,0.00049863,120]
[354460171,1740519070184,-2874.66,0.00049863,120]
[354460172,1740519070194,-500.0,0.00049863,120]
[354460173,1740519070203,-500.0,0.00049863,120]
[354460174,1740519070212,-1539.84,0.00049863,120]
[354460175,1740519070222,-505.14221418,0.00049863,120]
[354460176,1740519070231,-500.0,0.00049863,120]
[354460177,1740519070241,-500.0,0.00049863,120]
[354460178,1740519070250,-1372.6,0.00049863,120]
[354460179,1740519070260,-500.0,0.00049863,120]
[354460180,1740519070269,-500.0,0.00049863,120]
[354460181,1740519070279,-237.67971814,0.00049863,120]
[354460182,1740519070288,-500.0,0.00049863,120]
[354460183,1740519070297,-500.0,0.00049863,120]
[354460184,1740519070307,-500.0,0.00049863,120]
[354460185,1740519070316,-2167.36,0.00049863,120]
[354460186,1740519070326,-500.0,0.00049863,120]
[354460187,1740519070335,-500.0,0.00049863,120]
[354460188,1740519070345,-500.0,0.00049863,120]
[354460189,1740519070362,-502.42472601,0.00049863,120]
[354460190,1740519070372,-1031.41,0.00049863,120]
[354460191,1740519070381,-1128.56,0.00049863,120]
[354460192,1740519070391,-500.0,0.00049863,120]
[354460193,1740519070400,-847.51,0.00049863,120]
[354460194,1740519070410,-500.0,0.00049863,120]
[354460195,1740519070421,-1010.46,0.00049863,120]
[354460196,1740519070430,-500.0,0.00049863,120]
[354460197,1740519070439,-3061.97,0.00049863,120]
[354460198,1740519070449,-1465.92,0.00049863,120]
[354460199,1740519070458,-500.0,0.00049863,120]
[354460200,1740519070467,-500.0,0.00049863,120]
[354460201,1740519070477,-500.0,0.00049863,120]
[354460202,1740519070486,-500.0,0.00049863,120]
[354460203,1740519070495,-4164.0,0.00049863,120]
[354460204,1740519070505,-649.63860799,0.00049863,120]
[354460205,1740519070514,-500.0,0.00049863,120]
[354460206,1740519070523,-518.96516754,0.00049863,120]
[354460207,1740519070533,-504.76165128,0.00049863,120]
[354460208,1740519070543,-500.0,0.00049863,120]
[354460209,1740519070552,-604.52516169,0.00049863,120]
[354460210,1740519070562,-500.0,0.00049863,120]
[354460211,1740519070571,-825.18,0.00049863,120]
[354460212,1740519070580,-500.0,0.00049863,120]
[354460213,1740519070590,-500.0,0.00049863,120]
[354460214,1740519070599,-500.0,0.00049863,120]
[354460215,1740519070609,-500.0,0.00049863,120]
[354460216,1740519070623,-500.0,0.00049863,120]
[354460217,1740519070632,-500.0,0.00049863,120]
[354460218,1740519070641,-500.0,0.00049863,120]
[354460219,1740519070650,-500.0,0.00049863,120]
[354460220,1740519070661,-652.14,0.00049863,120]
[354460221,1740519070671,-2548.62,0.00049863,120]
[354460222,1740519070683,-500.0,0.00049863,120]
[354460223,1740519070693,-203.4640835,0.00049863,120]
[354460224,1740519070704,-500.0,0.00049863,120]
[354460225,1740519070713,-552.6,0.00049863,120]
[354460226,1740519070722,-500.0,0.00049863,120]
[354460227,1740519070731,-500.0,0.00049863,120]
[354460228,1740519070741,-500.0,0.00049863,120]
[354460229,1740519070750,-1272.0,0.00049863,120]
[354460230,1740519070759,-500.0,0.00049863,120]
[354460231,1740519070769,-502.21245705,0.00049863,28]
[354460232,1740519070779,-319.05156477,0.00049863,120]
[354460233,1740519070788,-2086.99,0.00049863,120]
[354460234,1740519070797,-500.0,0.00049863,120]
[354460235,1740519070807,-500.0,0.00049863,120]
[354460236,1740519070816,-500.0,0.00049863,120]
[354460237,1740519070825,-1922.37,0.00049863,120]
[354460238,1740519070834,-500.0,0.00049863,120]
[354460239,1740519070844,-500.0,0.00049863,120]
[354460240,1740519070853,-901.29,0.00049863,120]
[354460241,1740519070862,-500.0,0.00049863,120]
[354460242,1740519070871,-575.98,0.00049863,120]
[354460243,1740519070881,-652.73,0.00049863,120]
[354460244,1740519070890,-500.0,0.00049863,120]
[354460245,1740519070899,-500.0,0.00049863,120]
[354460246,1740519070908,-403.38073244,0.00049863,120]
[354460247,1740519070917,-301.43061822,0.00049863,120]
[354460248,1740519070927,-500.0,0.00049863,120]
[354460249,1740519070937,-1328.81,0.00049863,120]
[354460250,1740519070947,-500.0,0.00049863,120]
[354460251,1740519070957,-500.0,0.00049863,120]
[354460252,1740519070966,-1309.55,0.00049863,120]
[354460253,1740519070975,-1000.0,0.00049863,120]
[354460254,1740519070985,-500.0,0.00049863,120]
[354460255,1740519070994,-500.0,0.00049863,120]
[354460256,1740519071003,-805.37,0.00049863,45]
[354460257,1740519071013,-500.0,0.00049863,120]
[354460258,1740519071023,-504.1030797,0.00049863,120]
[354460259,1740519071033,-500.0,0.00049863,120]
[354460260,1740519071043,-500.0,0.00049863,120]
[354460261,1740519071052,-500.0,0.00049863,120]
[354460262,1740519071062,-500.0,0.00049863,120]
[354460263,1740519071071,-1110.68,0.00049863,120]
[354460264,1740519071081,-500.0,0.00049863,120]
[354460265,1740519071090,-500.0,0.00049863,120]
[354460266,1740519071099,-500.0,0.00049863,120]
[354460267,1740519071108,-663.85,0.00049863,120]
[354460268,1740519071118,-500.0,0.00049863,120]
[354460269,1740519071127,-500.0,0.00049863,120]
[354460270,1740519071137,-500.0,0.00049863,120]
[354460271,1740519071146,-500.0,0.00049863,120]
[354460272,1740519071156,-500.0,0.00049863,120]
[354460273,1740519071166,-500.0,0.00049863,120]
[354460274,1740519071178,-500.0,0.00049863,120]
[354460275,1740519071189,-500.0,0.00049863,120]
[354460276,1740519071200,-1041.62,0.00049863,120]
[354460277,1740519071210,-552.23670387,0.00049863,120]
[354460278,1740519071219,-500.0,0.00049863,120]
[354460279,1740519071228,-2860.45,0.00049863,120]
[354460280,1740519071238,-504.85927931,0.00049863,120]
[354460281,1740519071248,-1053.83,0.00049863,120]
[354460282,1740519071258,-3100.63,0.00049863,120]
[354460283,1740519071268,-505.3353256,0.00049863,120]
[354460284,1740519071277,-949.71,0.00049863,120]
[354460285,1740519071287,-503.31003367,0.00049863,120]
[354460286,1740519071297,-500.0,0.00049863,120]
[354460287,1740519071306,-609.53093232,0.00049863,120]
[354460288,1740519071315,-520.84,0.00049863,120]
[354460289,1740519071325,-500.0,0.00049863,120]
[354460290,1740519071335,-678.83,0.00049863,120]
[354460291,1740519071344,-562.27,0.00049863,120]
[354460292,1740519071354,-500.0,0.00049863,120]
[354460293,1740519071364,-500.0,0.00049863,120]
[354460294,1740519071373,-500.0,0.00049863,120]
[354460295,1740519071383,-794.87,0.00049863,120]
[354460296,1740519071392,-500.0,0.00049863,120]
[354460297,1740519071402,-500.0,0.00049863,120]
[354460298,1740519071411,-500.0,0.00049863,120]
[354460299,1740519071420,-500.0,0.00049863,120]
[354460300,1740519071431,-885.27,0.00049863,120]
[354460301,1740519071441,-789.88,0.00049863,120]
[354460302,1740519071451,-664.89,0.00049863,120]
[354460303,1740519071461,-500.0,0.00049863,120]
[354460304,1740519071471,-2502.34,0.00049863,120]
[354460305,1740519071480,-2491.31,0.00049863,120]
[354460306,1740519071490,-2347.69,0.00049863,120]
[354460307,1740519071499,-815.51,0.00049863,120]
[354460308,1740519071611,-500.0,0.00049863,120]
[354460309,1740519071623,-500.0,0.00049863,120]
[354460310,1740519071633,-500.0,0.00049863,120]
[354460311,1740519071642,-502.04842441,0.00049863,120]
[354460312,1740519071651,-500.0,0.00049863,120]
[354460313,1740519071662,-500.0,0.00049863,120]
[354460314,1740519071671,-628.59,0.00049863,120]
[354460315,1740519071681,-500.0,0.00049863,120]
[354460316,1740519071692,-5346.16,0.00049863,120]
[354460317,1740519071703,-500.0,0.00049863,120]
[354460318,1740519071712,-2251.12,0.00049863,120]
[354460319,1740519071721,-3000.0,0.00049863,30]
[354460320,1740519071730,-500.0,0.00049863,120]
[354460321,1740519071739,-503.41771493,0.00049863,120]
[354460322,1740519071749,-1298.15,0.00049863,120]
[354460323,1740519071759,-328.45555557,0.00049863,120]
[354460324,1740519071769,-500.0,0.00049863,120]
[354460325,1740519071778,-500.0,0.00049863,120]
[354460326,1740519071787,-500.0,0.00049863,120]
[354460327,1740519071797,-500.0,0.00049863,120]
[354460328,1740519071806,-619.49743679,0.00049863,120]
[354460329,1740519071815,-500.0,0.00049863,120]
[354460330,1740519071825,-500.0,0.00049863,120]
[354460331,1740519071835,-500.0,0.00049863,120]
[354460332,1740519071844,-500.0,0.00049863,120]
[354460333,1740519071853,-500.0,0.00049863,120]
[354460334,1740519071863,-500.0,0.00049863,120]
[354460335,1740519071872,-500.0,0.00049863,120]
[354460336,1740519071881,-502.82338771,0.00049863,120]
[354460337,1740519071890,-503.28001754,0.00049863,120]
[354460338,1740519071901,-914.32,0.00049863,120]
[354460339,1740519071909,-500.0,0.00049863,120]
[354460340,1740519071919,-500.0,0.00049863,120]
[354460341,1740519071933,-733.63,0.00049863,120]
[354460342,1740519071943,-500.15244253,0.00049863,120]